fUST/lending_fUST_20250708
["ID","MTS","AMOUNT","RATE_DAILY","PERIOD"]
[370219639,1751916644632,-980.0,0.00022208,2]
[370219642,1751916644642,-18461.6696393,0.00022214,2]
[370219644,1751916644652,-1462.34218183,0.00022214,2]
[370219646,1751916644663,-4324.66056214,0.00022214,2]
[370219648,1751916644672,-326.80042191,0.00022219,2]
[370219650,1751916644681,-1000.0,0.0002222,5]
[370219652,1751916644690,-1000.0,0.0002224,5]
[370219654,1751916644699,-4000.0,0.00022242,2]
[370219656,1751916644709,-151.0,0.00022242,7]
[370219658,1751916644718,-151.0,0.00022242,7]
[370219659,1751916644728,-284.990915,0.00022242,7]
[370219660,1751916644738,-284.990915,0.00022242,7]
[370219662,1751916644747,-168.82734029,0.00022247,2]
[370219664,1751916644757,-1000.0,0.0002226,5]
[370219666,1751916644767,-500.0,0.00022264,10]
[370219668,1751916644777,-151.0,0.00022265,7]
[370219670,1751916644787,-247.318958,0.00022265,7]
[370219672,1751916644797,-151.0,0.00022265,7]
[370219674,1751916644807,-151.0,0.00022265,7]
[370219676,1751916644816,-247.424768,0.00022265,2]
[370219677,1751916644826,-247.424768,0.00022265,2]
[370219679,1751916644835,-244.665713,0.00022265,7]
[370219681,1751916644844,-151.0,0.00022265,7]
[370219683,1751916644854,-275.245799,0.00022265,7]
[370219685,1751916644863,-151.0,0.00022265,7]
[370219687,1751916644872,-151.0,0.00022265,7]
[370219689,1751916644882,-151.0,0.00022265,7]
[370219691,1751916644891,-6879.23363881,0.00022265,2]
[370219697,1751916644936,-1267.63608658,0.00022265,2]
[370219699,1751916644949,-282.86,0.00022265,2]
[370219701,1751916644960,-1031.38245891,0.00022265,2]
[370219703,1751916644971,-979.86,0.00022265,2]
[370219706,1751916644987,-3545.80104006,0.00022265,2]
[370219708,1751916644999,-801.02999131,0.00022265,2]
[370219718,1751916645095,-460.0,0.00019178,2]
[370219720,1751916645105,-460.0,0.00019178,2]
[370219722,1751916645116,-63.26516261,0.00020566,10]
[370219724,1751916645132,-400.0,0.00020566,10]
[370219727,1751916645143,-2219.71245049,0.00020566,10]
[370219729,1751916645155,-1320.3723869,0.00020566,10]
[370219731,1751916645166,-646.0,0.00021251,2]
[370219733,1751916645175,-1324.93768337,0.00021537,2]
[370219735,1751916645185,-896.00970977,0.00021917,2]
[370219737,1751916645196,-359.76029023,0.00021917,2]
[370219739,1751916645206,-355.0205179,0.00022191,2]
[370219741,1751916645217,-900.7494821,0.00022191,2]
[370219743,1751916645226,-1137.30416324,0.00022265,2]
[370219745,1751916645239,-2054.69849881,0.00022265,2]
[370219747,1751916645250,-21450.3426404,0.00022265,2]
[370219749,1751916645261,-391.94826509,0.00022265,2]
[370219760,1751916645350,-351.98893783,0.00019178,2]
[370219762,1751916645362,-108.01106217,0.00019178,2]
[370219767,1751916645372,-460.0,0.00019178,2]
[370219769,1751916645409,-460.0,0.00019452,2]
[370219771,1751916645419,-460.0,0.00019726,2]
[370219773,1751916645429,-460.0,0.0002,2]
[370219775,1751916645438,-2442.09130168,0.00022265,2]
[370219777,1751916645449,-4292.82098535,0.00022265,2]
[370219788,1751916645542,-460.0,0.00020273,2]
[370219790,1751916645552,-4184.3289902,0.00022265,2]
[370219792,1751916645562,-151.0,0.00022265,7]
[370219794,1751916645571,-151.0,0.00022265,7]
[370219796,1751916645582,-151.0,0.00022265,7]
[370219798,1751916645592,-151.0,0.00022265,7]
[370219800,1751916645601,-151.0,0.00022265,7]
[370219802,1751916645611,-151.0,0.00022265,7]
[370219804,1751916645620,-151.0,0.00022265,7]
[370219806,1751916645629,-151.0,0.00022265,7]
[370219807,1751916645638,-151.0,0.00022265,7]
[370219809,1751916645647,-151.0,0.00022265,7]
[370219811,1751916645656,-151.0,0.00022265,7]
[370219813,1751916645665,-151.0,0.00022265,7]
[370219815,1751916645674,-151.0,0.00022265,7]
[370219817,1751916645684,-201.773008,0.00022265,7]
[370219819,1751916645693,-201.773008,0.00022265,7]
[370219821,1751916645703,-151.0,0.00022265,7]
[370219823,1751916645713,-151.0,0.00022265,7]
[370219825,1751916645722,-155.887469,0.00022265,7]
[370219827,1751916645731,-155.887469,0.00022265,7]
[370219829,1751916645742,-271.112617,0.00022265,7]
[370219831,1751916645752,-151.0,0.00022265,7]
[370219833,1751916645761,-271.112617,0.00022265,7]
[370219835,1751916645771,-151.0,0.00022265,3]
[370219837,1751916645780,-270.078039,0.00022265,7]
[370219839,1751916645790,-270.078039,0.00022265,7]
[370219841,1751916645799,-151.0,0.00022265,7]
[370219843,1751916645808,-278.778831,0.00022265,7]
[370219845,1751916645817,-2582.47272783,0.00022279,6]
[370219847,1751916645826,-1000.0,0.0002228,5]
[370219849,1751916645835,-168.0,0.00022294,2]
[370219851,1751916645844,-655.74004362,0.000223,2]
[370219853,1751916645854,-151.0,0.000223,5]
[370219855,1751916645863,-151.0,0.000223,6]
[370219857,1751916645872,-151.0,0.000223,7]
[370219859,1751916645881,-1000.0,0.000223,5]
[370219861,1751916645890,-237.7,0.00022306,5]
[370219863,1751916645899,-1000.0,0.0002232,5]
[370219865,1751916645909,-326.80042191,0.00022329,2]
[370219867,1751916645917,-1000.0,0.0002234,5]
[370219869,1751916645926,-1000.0,0.0002236,5]
[370219871,1751916645935,-1873.039988,0.0002238,5]
[370219873,1751916645945,-1000.0,0.0002238,5]
[370219875,1751916645954,-1264.39514254,0.0002238,2]
[370219877,1751916645963,-500.0,0.00022399,10]
[370219879,1751916645973,-19787.7055889,0.000224,2]
[370219943,1751916646655,-429.18489741,0.00019178,2]
[370219945,1751916646665,-460.0,0.00019178,2]
[370219947,1751916646674,-317.79,0.00019452,2]
[370219949,1751916646684,-460.0,0.00020547,2]
[370219951,1751916646694,-460.0,0.00020821,2]
[370219953,1751916646703,-460.0,0.00021095,2]
[370219955,1751916646712,-460.0,0.00021369,2]
[370219957,1751916646722,-48310.91267487,0.000224,2]
[370219961,1751916646751,-618.41132676,0.000224,2]
[370219963,1751916646764,-405.98995384,0.000224,2]
[370219966,1751916646780,-1689.49152321,0.00022265,2]
[370219968,1751916646791,-473.91455259,0.00022265,2]
[370219970,1751916646803,-768.94080849,0.00022265,2]
[370223911,1751916758035,191.491554,0.00027397,120]
[370223912,1751916758113,213.98794603,0.000222,69]
[370223913,1751917002040,56.53582234,0.00013699,2]
[370223914,1751917002074,217.53467086,0.00013699,2]
[370223917,1751917108497,213.98794602,0.000222,69]
[370223918,1751917550128,-710.295296,0.00018551,2]
[370223919,1751917550653,-1093.03770974,0.00019077,2]
[370223920,1751917550674,-110.176109,0.00019168,3]
[370223942,1751917831857,-1938.66026902,0.000189,2]
[370223943,1751917831867,-158.273891,0.00019168,3]
[370223944,1751917831877,-805.39,0.00019168,3]
[370223945,1751917831887,-300.0,0.00019169,2]
[370223946,1751917831897,-13.57603854,0.00019169,2]
[370223947,1751917831909,-286.42396146,0.00019169,2]
[370223948,1751917831918,-300.0,0.00019169,2]
[370223949,1751917831929,-1200.0,0.00019169,2]
[370223950,1751917831939,-2447.54795537,0.0001917,2]
[370223951,1751917831951,-15066.47272324,0.0001917,2]
[370224527,1751917837981,-414.76960789,0.00019169,2]
[370224529,1751917837991,-500.0,0.00019169,2]
[370224531,1751917838000,-301.01808026,0.00019169,2]
[370224533,1751917838009,-240.20823273,0.00019169,2]
[370224535,1751917838020,-259.79176727,0.00019169,2]
[370224537,1751917838030,-500.0,0.00019169,2]
[370224539,1751917838039,-58.12823523,0.00019169,2]
[370224542,1751917838051,-441.87176477,0.00019169,2]
[370224544,1751917838060,-500.0,0.00019169,2]
[370224546,1751917838069,-325.60725268,0.00019169,2]
[370224548,1751917838079,-235.88646105,0.00019169,2]
[370224550,1751917838088,-5.34207988,0.00019169,2]
[370224553,1751917838112,-494.65792012,0.00019169,2]
[370224555,1751917838122,-500.0,0.00019169,2]
[370224557,1751917838132,-500.0,0.00019169,2]
[370224559,1751917838141,-500.0,0.00019169,2]
[370224561,1751917838151,-500.0,0.00019169,2]
[370224563,1751917838159,-500.0,0.00019169,2]
[370224565,1751917838169,-500.0,0.00019169,2]
[370224567,1751917838178,-500.0,0.00019169,2]
[370224569,1751917838187,-500.0,0.00019169,2]
[370224571,1751917838196,-500.0,0.00019169,2]
[370224573,1751917838205,-500.0,0.00019169,2]
[370224575,1751917838216,-500.0,0.00019169,2]
[370224577,1751917838225,-500.0,0.00019169,2]
[370224578,1751917838234,-500.0,0.00019169,2]
[370224579,1751917838243,-500.0,0.00019169,2]
[370224580,1751917838254,-16482.33592706,0.0001917,2]
[370224581,1751917838263,-500.0,0.00019173,2]
[370224582,1751917838272,-500.0,0.00019173,2]
[370224584,1751917838282,-500.0,0.00019173,2]
[370224586,1751917838292,-500.0,0.00019173,2]
[370224588,1751917838301,-155.0,0.00019177,2]
[370224590,1751917838311,-199.88505805,0.00019177,2]
[370224592,1751917838321,-500.0,0.00019177,2]
[370224594,1751917838330,-572.72590153,0.00019177,2]
[370224596,1751917838339,-500.0,0.00019177,2]
[370224598,1751917838349,-500.0,0.00019177,2]
[370224600,1751917838359,-500.0,0.00019177,2]
[370224602,1751917838368,-445.62299843,0.00019178,2]
[370224604,1751917838377,-460.0,0.00019178,2]
[370224607,1751917838387,-460.0,0.00019178,2]
[370224609,1751917838397,-381.48304136,0.00019178,2]
[370224611,1751917838406,-500.0,0.00019178,2]
[370224613,1751917838417,-460.0,0.00019178,2]
[370224615,1751917838427,-460.0,0.00019178,2]
[370224617,1751917838437,-460.0,0.00019178,2]
[370224619,1751917838446,-460.0,0.00019178,2]
[370224621,1751917838456,-460.0,0.00019178,2]
[370224623,1751917838466,-460.0,0.00019178,2]
[370224625,1751917838475,-460.0,0.00019178,2]
[370224627,1751917838484,-460.0,0.00019178,2]
[370224629,1751917838493,-460.0,0.00019178,2]
[370224631,1751917838502,-460.0,0.00019178,2]
[370224633,1751917838511,-460.0,0.00019178,2]
[370224635,1751917838520,-460.0,0.00019178,2]
[370224637,1751917838530,-460.0,0.00019178,2]
[370224639,1751917838539,-460.0,0.00019178,2]
[370224641,1751917838549,-433.70990263,0.00019178,2]
[370224643,1751917838558,-460.0,0.00019178,2]
[370224645,1751917838567,-500.0,0.00019178,2]
[370224647,1751917838576,-500.0,0.00019178,2]
[370224649,1751917838585,-247.70798796,0.00019178,2]
[370224651,1751917838595,-406.27023467,0.00019178,2]
[370224653,1751917838604,-460.0,0.00019178,2]
[370224655,1751917838613,-460.0,0.00019178,2]
[370224657,1751917838623,-460.0,0.00019178,2]
[370224660,1751917838633,-460.0,0.00019178,2]
[370224662,1751917838642,-381.30568454,0.00019178,2]
[370224664,1751917838651,-203.14748724,0.00019178,2]
[370224667,1751917838673,-256.85251276,0.00019178,2]
[370224669,1751917838682,-549.18921022,0.00019178,2]
[370224671,1751917838691,-460.0,0.00019178,2]
[370224673,1751917838700,-460.0,0.00019178,2]
[370224675,1751917838709,-460.0,0.00019178,2]
[370224677,1751917838718,-460.0,0.00019178,2]
[370224679,1751917838728,-460.0,0.00019178,2]
[370224680,1751917838737,-373.0790775,0.00019178,2]
[370224682,1751917838746,-460.0,0.00019178,2]
[370224684,1751917838755,-460.0,0.00019178,2]
[370224686,1751917838765,-436.89342291,0.00019178,2]
[370224688,1751917838774,-460.0,0.00019178,2]
[370224690,1751917838783,-460.0,0.00019178,2]
[370224692,1751917838792,-460.0,0.00019178,2]
[370224694,1751917838802,-304.75482169,0.00019178,2]
[370224696,1751917838811,-460.0,0.00019178,2]
[370224698,1751917838820,-460.0,0.00019178,2]
[370224700,1751917838830,-460.0,0.00019178,2]
[370224702,1751917838839,-540.67087651,0.00019178,2]
[370224704,1751917838849,-460.0,0.00019178,2]
[370224706,1751917838862,-460.0,0.00019178,2]
[370224708,1751917838871,-460.0,0.00019178,2]
[370224710,1751917838881,-460.0,0.00019178,2]
[370224712,1751917838891,-460.0,0.00019178,2]
[370224714,1751917838901,-460.0,0.00019178,2]
[370224716,1751917838910,-460.0,0.00019178,2]
[370224718,1751917838920,-460.0,0.00019178,2]
[370224720,1751917838929,-460.0,0.00019178,2]
[370224722,1751917838940,-460.0,0.00019178,2]
[370224724,1751917838950,-460.0,0.00019178,2]
[370224726,1751917838959,-460.0,0.00019178,2]
[370224728,1751917838969,-460.0,0.00019178,2]
[370224730,1751917838978,-460.0,0.00019178,2]
[370224732,1751917838988,-460.0,0.00019178,2]
[370224734,1751917838997,-460.0,0.00019178,2]
[370224736,1751917839007,-460.0,0.00019178,2]
[370224737,1751917839017,-460.0,0.00019178,2]
[370224739,1751917839028,-516.94993709,0.00019178,2]
[370224741,1751917839037,-318.27916767,0.00019178,2]
[370224743,1751917839048,-460.0,0.00019178,2]
[370224746,1751917839067,-500.0,0.00019178,2]
[370224749,1751917839078,-460.0,0.00019178,2]
[370224751,1751917839089,-460.0,0.00019178,2]
[370224753,1751917839099,-460.0,0.00019178,2]
[370224755,1751917839108,-460.0,0.00019178,2]
[370224757,1751917839117,-460.0,0.00019178,2]
[370224759,1751917839129,-460.0,0.00019178,2]
[370224761,1751917839139,-460.0,0.00019178,2]
[370224763,1751917839148,-460.0,0.00019178,2]
[370224764,1751917839158,-460.0,0.00019178,2]
[370224766,1751917839169,-460.0,0.00019178,2]
[370224768,1751917839179,-460.0,0.00019178,2]
[370224770,1751917839189,-460.0,0.00019178,2]
[370224771,1751917839199,-460.0,0.00019178,2]
[370224773,1751917839209,-460.0,0.00019178,2]
[370224774,1751917839219,-460.0,0.00019178,2]
[370224775,1751917839229,-460.0,0.00019178,2]
[370224776,1751917839239,-460.0,0.00019178,2]
[370224777,1751917839249,-500.0,0.00019178,2]
[370224778,1751917839259,-460.0,0.00019178,2]
[370224779,1751917839269,-593.56532075,0.00019178,2]
[370224780,1751917839278,-460.0,0.00019178,2]
[370224781,1751917839288,-460.0,0.00019178,2]
[370224782,1751917839298,-460.0,0.00019178,2]
[370224783,1751917839307,-460.0,0.00019178,2]
[370224784,1751917839317,-460.0,0.00019178,2]
[370224785,1751917839328,-468.13587749,0.00019178,2]
[370224786,1751917839337,-460.0,0.00019178,2]
[370224787,1751917839347,-403.49873803,0.00019178,2]
[370224788,1751917839357,-460.0,0.00019178,2]
[370224790,1751917839366,-460.0,0.00019178,2]
[370224791,1751917839377,-460.0,0.00019178,2]
[370224792,1751917839387,-460.0,0.00019178,2]
[370224793,1751917839397,-463.52287797,0.00019178,2]
[370224794,1751917839406,-460.0,0.00019178,2]
[370224795,1751917839416,-460.0,0.00019178,2]
[370224796,1751917839426,-461.43656074,0.00019178,2]
[370224797,1751917839436,-460.0,0.00019178,2]
[370224798,1751917839446,-461.1098923,0.00019178,2]
[370224799,1751917839456,-460.0,0.00019178,2]
[370224800,1751917839466,-460.0,0.00019178,2]
[370224802,1751917839477,-460.0,0.00019178,2]
[370224804,1751917839487,-460.0,0.00019178,2]
[370224806,1751917839497,-460.0,0.00019178,2]
[370224808,1751917839507,-460.0,0.00019178,2]
[370224810,1751917839517,-460.0,0.00019178,2]
[370224812,1751917839526,-460.0,0.00019178,2]
[370224814,1751917839536,-460.0,0.00019178,2]
[370224816,1751917839545,-460.0,0.00019178,2]
[370224818,1751917839555,-561.73889037,0.00019178,2]
[370224820,1751917839564,-508.25,0.00019178,2]
[370224822,1751917839575,-460.0,0.00019178,2]
[370224824,1751917839584,-460.0,0.00019178,2]
[370224826,1751917839594,-460.0,0.00019178,2]
[370224828,1751917839603,-460.0,0.00019178,2]
[370224830,1751917839612,-500.0,0.00019178,2]
[370224832,1751917839622,-460.0,0.00019178,2]
[370224834,1751917839632,-500.0,0.00019178,2]
[370224836,1751917839641,-500.0,0.00019178,2]
[370224838,1751917839650,-500.0,0.00019178,2]
[370224840,1751917839660,-500.0,0.00019178,2]
[370224842,1751917839669,-201.97,0.00019178,2]
[370224845,1751917839683,-460.0,0.00019178,2]
[370224847,1751917839693,-460.0,0.00019178,2]
[370224849,1751917839702,-460.0,0.00019178,2]
[370224851,1751917839711,-309.22077946,0.00019178,2]
[370224853,1751917839721,-460.0,0.00019178,2]
[370224855,1751917839731,-460.0,0.00019178,2]
[370224857,1751917839742,-460.0,0.00019178,2]
[370224859,1751917839752,-460.0,0.00019178,2]
[370224861,1751917839761,-460.0,0.00019178,2]
[370224862,1751917839771,-500.0,0.00019178,2]
[370224865,1751917839781,-460.0,0.00019178,2]
[370224866,1751917839791,-460.0,0.00019178,2]
[370224868,1751917839801,-460.0,0.00019178,2]
[370224870,1751917839811,-460.0,0.00019178,2]
[370224872,1751917839820,-460.0,0.00019178,2]
[370224874,1751917839830,-460.0,0.00019178,2]
[370224876,1751917839840,-460.0,0.00019178,2]
[370224878,1751917839850,-460.0,0.00019178,2]
[370224880,1751917839863,-460.0,0.00019178,2]
[370224882,1751917839873,-460.0,0.00019178,2]
[370224884,1751917839883,-460.0,0.00019178,2]
[370224886,1751917839893,-460.0,0.00019178,2]
[370224888,1751917839905,-460.0,0.00019178,2]
[370224891,1751917839915,-461.15221161,0.00019178,2]
[370224892,1751917839926,-460.0,0.00019178,2]
[370224895,1751917839937,-460.0,0.00019178,2]
[370224897,1751917839948,-460.0,0.00019178,2]
[370224898,1751917839957,-440.49910396,0.00019178,2]
[370224900,1751917839967,-460.0,0.00019178,2]
[370224902,1751917839977,-460.0,0.00019178,2]
[370224904,1751917839987,-500.0,0.00019178,2]
[370224906,1751917839997,-460.0,0.00019178,2]
[370224908,1751917840008,-460.53687793,0.00019178,2]
[370224910,1751917840017,-460.0,0.00019178,2]
[370224912,1751917840027,-460.0,0.00019178,2]
[370224914,1751917840037,-460.0,0.00019178,2]
[370224916,1751917840046,-460.0,0.00019178,2]
[370224918,1751917840056,-460.0,0.00019178,2]
[370224920,1751917840066,-433.97892904,0.00019178,2]
[370224922,1751917840076,-460.0,0.00019178,2]
[370224924,1751917840085,-460.0,0.00019178,2]
[370224926,1751917840095,-460.0,0.00019178,2]
[370224928,1751917840104,-460.0,0.00019178,2]
[370224930,1751917840113,-460.0,0.00019178,2]
[370224932,1751917840123,-460.0,0.00019178,2]
[370224933,1751917840132,-460.0,0.00019178,2]
[370224935,1751917840143,-460.0,0.00019178,2]
[370224937,1751917840152,-460.0,0.00019178,2]
[370224939,1751917840162,-460.0,0.00019178,2]
[370224941,1751917840171,-460.0,0.00019178,2]
[370224943,1751917840181,-609.72791554,0.00019178,2]
[370224945,1751917840191,-460.0,0.00019178,2]
[370224947,1751917840200,-460.0,0.00019178,2]
[370224949,1751917840210,-460.0,0.00019178,2]
[370224951,1751917840219,-460.0,0.00019178,2]
[370224953,1751917840228,-460.0,0.00019178,2]
[370224955,1751917840238,-460.0,0.00019178,2]
[370224957,1751917840247,-460.0,0.00019178,2]
[370224959,1751917840257,-460.0,0.00019178,2]
[370224961,1751917840266,-460.0,0.00019178,2]
[370224963,1751917840275,-176.59429916,0.00019178,2]
[370224965,1751917840285,-460.0,0.00019178,2]
[370224967,1751917840295,-460.0,0.00019178,2]
[370224968,1751917840305,-412.33803501,0.00019178,2]
[370224971,1751917840317,-460.36708761,0.00019178,2]
[370224973,1751917840326,-460.0,0.00019178,2]
[370224974,1751917840336,-460.0,0.00019178,2]
[370224976,1751917840345,-460.0,0.00019178,2]
[370224978,1751917840355,-160.0,0.00019178,2]
[370224980,1751917840364,-460.0,0.00019178,2]
[370224982,1751917840373,-460.0,0.00019178,2]
[370224984,1751917840384,-500.41894978,0.00019178,2]
[370224986,1751917840394,-460.0,0.00019178,2]
[370224988,1751917840404,-463.39186505,0.00019178,2]
[370224990,1751917840414,-460.0,0.00019178,2]
[370224992,1751917840424,-460.0,0.00019178,2]
[370224994,1751917840434,-460.0,0.00019178,2]
[370224996,1751917840444,-460.0,0.00019178,2]
[370224998,1751917840453,-460.0,0.00019178,2]
[370225000,1751917840463,-460.0,0.00019178,2]
[370225002,1751917840473,-460.0,0.00019178,2]
[370225003,1751917840482,-460.0,0.00019178,2]
[370225005,1751917840492,-500.0,0.00019178,2]
[370225007,1751917840501,-460.0,0.00019178,2]
[370225009,1751917840511,-500.0,0.00019178,2]
[370225011,1751917840521,-500.0,0.00019178,2]
[370225013,1751917840531,-280.97720901,0.00019178,2]
[370225015,1751917840540,-460.0,0.00019178,2]
[370225017,1751917840549,-460.0,0.00019178,2]
[370225019,1751917840559,-460.0,0.00019178,2]
[370225020,1751917840568,-460.0,0.00019178,2]
[370225022,1751917840578,-460.0,0.00019178,2]
[370225024,1751917840589,-460.0,0.00019178,2]
[370225026,1751917840599,-460.0,0.00019178,2]
[370225028,1751917840608,-460.0,0.00019178,2]
[370225030,1751917840618,-460.0,0.00019178,2]
[370225032,1751917840627,-460.0,0.00019178,2]
[370225034,1751917840637,-460.0,0.00019178,2]
[370225036,1751917840647,-460.0,0.00019178,2]
[370225038,1751917840656,-460.0,0.00019178,2]
[370225040,1751917840667,-460.0,0.00019178,2]
[370225041,1751917840676,-460.0,0.00019178,2]
[370225043,1751917840686,-460.0,0.00019178,2]
[370225045,1751917840695,-460.0,0.00019178,2]
[370225047,1751917840707,-460.0,0.00019178,2]
[370225049,1751917840717,-1961.94,0.00019178,2]
[370225051,1751917840727,-157.15,0.00019178,2]
[370225053,1751917840736,-460.0,0.00019178,2]
[370225055,1751917840745,-460.0,0.00019178,2]
[370225056,1751917840756,-500.0,0.00019178,2]
[370225058,1751917840766,-460.0,0.00019178,2]
[370225060,1751917840775,-461.52962911,0.00019178,2]
[370225062,1751917840784,-460.0,0.00019178,2]
[370225064,1751917840793,-460.0,0.00019178,2]
[370225066,1751917840803,-460.0,0.00019178,2]
[370225068,1751917840812,-1121.76,0.00019178,2]
[370225069,1751917840821,-460.0,0.00019178,2]
[370225071,1751917840831,-460.0,0.00019178,2]
[370225073,1751917840840,-460.0,0.00019178,2]
[370225088,1751917841009,-460.0,0.00019178,2]
[370225090,1751917841021,-460.0,0.00019178,2]
[370225092,1751917841032,-460.0,0.00019178,2]
[370225094,1751917841042,-460.0,0.00019178,2]
[370225096,1751917841051,-460.0,0.00019178,2]
[370225098,1751917841061,-460.0,0.00019178,2]
[370225100,1751917841071,-512.10575643,0.00019178,2]
[370225102,1751917841080,-460.0,0.00019178,2]
[370225104,1751917841090,-460.0,0.00019178,2]
[370225106,1751917841099,-772.99,0.00019178,2]
[370225107,1751917841108,-256.50995423,0.00019178,2]
[370225110,1751917841127,-203.49004577,0.00019178,2]
[370225112,1751917841136,-460.0,0.00019178,2]
[370225114,1751917841146,-460.0,0.00019178,2]
[370225115,1751917841155,-460.0,0.00019178,2]
[370225117,1751917841164,-460.0,0.00019178,2]
[370225119,1751917841173,-460.0,0.00019178,2]
[370225121,1751917841183,-500.0,0.00019178,2]
[370225122,1751917841192,-460.0,0.00019178,2]
[370225124,1751917841202,-460.0,0.00019178,2]
[370225126,1751917841212,-460.0,0.00019178,2]
[370225128,1751917841223,-460.0,0.00019178,2]
[370225130,1751917841232,-460.0,0.00019178,2]
[370225131,1751917841242,-228.55516805,0.00019178,2]
[370225133,1751917841251,-460.0,0.00019178,2]
[370225135,1751917841261,-909.79,0.00019178,2]
[370225137,1751917841270,-1136.17,0.00019178,2]
[370225139,1751917841279,-512.50140471,0.00019178,2]
[370225140,1751917841289,-460.0,0.00019178,2]
[370225142,1751917841299,-460.0,0.00019178,2]
[370225144,1751917841308,-460.0,0.00019178,2]
[370225146,1751917841318,-460.0,0.00019178,2]
[370225148,1751917841327,-460.0,0.00019178,2]
[370225149,1751917841336,-460.0,0.00019178,2]
[370225151,1751917841345,-460.0,0.00019178,2]
[370225153,1751917841355,-460.0,0.00019178,2]
[370225155,1751917841364,-1463.16,0.00019178,2]
[370225157,1751917841373,-516.46,0.00019178,2]
[370225159,1751917841384,-460.0,0.00019178,2]
[370225160,1751917841393,-460.0,0.00019178,2]
[370225162,1751917841403,-460.0,0.00019178,2]
[370225164,1751917841412,-460.0,0.00019178,2]
[370225166,1751917841422,-460.0,0.00019178,2]
[370225168,1751917841431,-460.0,0.00019178,2]
[370225170,1751917841441,-465.38291842,0.00019178,2]
[370225172,1751917841450,-460.0,0.00019178,2]
[370225173,1751917841460,-464.60575475,0.00019178,2]
[370225175,1751917841471,-460.0,0.00019178,2]
[370225177,1751917841482,-460.0,0.00019178,2]
[370225179,1751917841492,-460.0,0.00019178,2]
[370225181,1751917841503,-460.0,0.00019178,2]
[370225183,1751917841512,-460.0,0.00019178,2]
[370225185,1751917841522,-467.56755171,0.00019178,2]
[370225186,1751917841531,-460.0,0.00019178,2]
[370225188,1751917841540,-460.0,0.00019178,2]
[370225190,1751917841549,-238.63719114,0.00019178,2]
[370225192,1751917841558,-460.0,0.00019178,2]
[370225194,1751917841569,-610.2230491,0.00019178,2]
[370225196,1751917841582,-202.8169509,0.00019178,2]
[370225198,1751917841592,-460.0,0.00019178,2]
[370225200,1751917841602,-460.0,0.00019178,2]
[370225202,1751917841611,-467.4328484,0.00019178,2]
[370225204,1751917841621,-488.59613851,0.00019178,2]
[370225206,1751917841631,-1159.48,0.00019178,2]
[370225208,1751917841641,-460.0,0.00019178,2]
[370225210,1751917841651,-460.0,0.00019178,2]
[370225211,1751917841660,-460.0,0.00019178,2]
[370225213,1751917841669,-460.0,0.00019178,2]
[370225215,1751917841679,-342.72294116,0.00019178,2]
[370225217,1751917841688,-460.0,0.00019178,2]
[370225219,1751917841697,-460.0,0.00019178,2]
[370225221,1751917841707,-584.71355887,0.00019178,2]
[370225223,1751917841716,-460.0,0.00019178,2]